bitfinex-derivatives/quotes_ETHF0:USTF0_20260113
["timestamp","ask_amount","ask_price","bid_price","bid_amount"]
[1768288561553,1.08930834,3130.9,3129.9,1.23542613]
[1768288563356,1.08930834,3130.9,3130.1,1.08930834]
[1768288563555,1.08930834,3130.9,3130.1,1.23542613]
[1768288563957,1.08930834,3131.4,3130.1,1.23542613]
[1768288564145,1.08930834,3131.0,3130.1,1.23542613]
[1768288564860,0.00478774,3131.5,3130.8,1.08930834]
[1768288565055,1.09409608,3131.5,3130.7,0.1358403]
[1768288565556,1.08930834,3131.3,3130.2,0.1358403]
[1768288565855,1.08930834,3131.4,3130.2,0.1358403]
[1768288566061,1.08930834,3131.0,3130.2,0.1358403]
[1768288566861,1.08930834,3130.4,3129.8,0.13885429]
[1768288567061,1.08930834,3130.2,3129.8,0.00301399]
[1768288567260,1.08930834,3130.4,3129.8,0.00301399]
[1768288567461,1.09053988,3130.7,3129.8,0.00301399]
[1768288569557,1.09053988,3130.1,3129.4,3.00436948]
[1768288569758,1.09053988,3130.4,3129.4,0.1358403]
[1768288569958,1.09053988,3130.8,3129.4,0.1358403]
[1768288570158,0.86950403,3130.7,3129.4,0.1358403]
[1768288570455,1.09053988,3130.8,3129.4,0.1358403]
[1768288570660,1.09053988,3130.8,3129.4,0.13890749]
[1768288570661,0.86931907,3130.7,3129.4,0.13890749]
[1768288570858,1.09053988,3130.8,3129.6,0.1358403]
[1768288573165,1.09053988,3130.8,3129.4,0.00306719]
[1768288573166,1.09053988,3130.5,3129.4,0.00306719]
[1768288576164,0.00382728,3130.9,3129.4,0.00306719]
[1768288576165,1.09053988,3129.6,3129.4,0.00306719]
[1768288576468,1.09053988,3129.6,3128.6,0.1453003]
[1768288576768,1.09053988,3129.8,3128.6,0.1453003]
[1768288576971,1.09053988,3130.2,3128.6,0.1453003]
[1768288577166,0.86836932,3130.1,3128.7,1.23584018]
[1768288577365,1.09053988,3130.2,3128.7,0.14908865]
[1768288577669,0.00440181,3130.7,3128.7,0.14908865]
[1768288577670,1.95841237,3130.1,3128.7,0.14908865]
[1768288577865,1.09053988,3130.1,3128.8,0.1453003]
[1768288578167,40.95989,3130.9,3129.1,0.1453003]
[1768288578367,1.09053988,3130.5,3129.1,0.1453003]
[1768288578569,1.09053988,3130.8,3129.1,0.1453003]
[1768288578763,0.8679142,3130.7,3129.1,0.1453003]
[1768288578964,0.8679142,3130.6,3129.1,0.1453003]
[1768288579167,1.09053988,3130.5,3129.1,0.1453003]
[1768288580368,1.09053988,3130.2,3129.1,0.1453003]
[1768288580969,1.09053988,3129.9,3128.7,0.14908865]
[1768288581762,1.09053988,3130.2,3128.7,0.14908865]
[1768288584259,1.09053988,3129.9,3128.7,0.14908865]
[1768288584962,1.09053988,3129.6,3128.7,0.14908865]
[1768288585375,1.09053988,3129.9,3128.7,0.14908865]
[1768288586973,1.09053988,3130.2,3128.7,0.00378835]
[1768288587271,1.09053988,3129.6,3128.7,0.00378835]
[1768288592975,0.1599,3130.6,3128.8,0.1453003]
[1768288593172,1.09053988,3130.1,3128.8,0.1453003]
[1768288593376,1.09053988,3130.2,3128.8,0.1453003]
[1768288594078,0.1599,3130.6,3128.8,0.1453003]
[1768288594280,1.09053988,3130.3,3128.8,0.1453003]
[1768288594468,1.09053988,3130.0,3128.8,0.13836795]
[1768288597480,1.09053988,3129.7,3128.8,0.13836795]
[1768288598072,1.09053988,3130.2,3128.8,0.13836795]
[1768288599479,0.87005151,3130.1,3128.8,0.13836795]
[1768288599681,1.09053988,3130.2,3128.8,0.13836795]
[1768288599883,0.87005402,3130.1,3128.8,0.13836795]
[1768288600075,1.09053988,3130.2,3128.8,0.13836795]
[1768288600282,1.09053988,3130.0,3128.8,0.13836795]
[1768288601189,1.25042988,3130.8,3129.2,0.13836795]
[1768288601390,0.8702597,3130.7,3129.2,0.13836795]
[1768288601680,0.8702597,3130.6,3129.2,0.13836795]
[1768288601885,1.09053988,3130.8,3129.2,0.13836795]
[1768288601886,1.09053988,3130.4,3129.2,0.13836795]
[1768288603589,0.8708186,3130.3,3128.9,0.13836795]
[1768288603789,1.09053988,3130.4,3128.9,0.13836795]
[1768288603990,1.09053988,3130.4,3129.1,0.13836795]
[1768288612290,0.15987,3131.2,3129.1,0.13836795]
[1768288612499,1.09053988,3130.7,3129.3,1.09053988]
[1768288612694,0.8710806,3130.6,3129.3,1.09053988]
[1768288612892,1.09053988,3130.7,3129.3,1.09053988]
[1768288613093,0.8710729,3130.6,3129.3,1.09053988]
[1768288613396,1.09053988,3130.7,3129.3,1.09053988]
[1768288613597,0.87099722,3130.6,3129.3,1.09053988]
[1768288613800,1.09053988,3130.7,3129.3,1.09053988]
[1768288613992,0.87099556,3130.6,3129.3,1.22890783]
[1768288614187,1.09053988,3130.7,3129.3,1.22890783]
[1768288614394,0.87099559,3130.6,3129.3,1.22890783]
[1768288614699,1.09053988,3130.7,3129.3,1.22890783]
[1768288614899,0.87093268,3130.6,3129.3,1.22890783]
[1768288615199,1.09053988,3130.7,3129.3,1.22890783]
[1768288615498,0.87093268,3130.6,3129.3,1.22890783]
[1768288615703,1.09053988,3130.7,3129.3,1.22890783]
[1768288615998,0.87088304,3130.6,3129.3,1.22890783]
[1768288616200,1.09053988,3130.7,3129.3,1.22890783]
[1768288616499,0.87088304,3130.6,3129.3,1.22890783]
[1768288616798,1.09053988,3130.7,3129.3,1.22890783]
[1768288617001,0.87086205,3130.6,3129.3,1.22890783]
[1768288617299,1.09053988,3130.7,3129.3,1.22890783]
[1768288617495,0.87086454,3130.6,3129.3,1.22890783]
[1768288617800,1.09053988,3130.7,3129.3,0.13836795]
[1768288617998,1.09053988,3130.5,3129.3,0.13836795]
[1768288618694,1.09053988,3130.3,3129.3,0.13836795]
[1768288619696,0.15987,3131.2,3129.3,0.13836795]
[1768288619998,1.09053988,3130.4,3129.3,0.13836795]
[1768288620795,1.09053988,3130.2,3128.8,0.13836795]
[1768288621003,1.09053988,3130.0,3128.8,0.13836795]
[1768288621194,1.09053988,3130.2,3128.8,0.13836795]
[1768288621502,1.09053988,3130.2,3128.9,0.13836795]
[1768288626697,1.09053988,3129.9,3128.9,0.13836795]
[1768288626903,1.09053988,3129.4,3128.7,0.00378835]
[1768288627099,0.0030951,3129.4,3128.7,0.00378835]
[1768288635305,1.09423612,3129.4,3128.7,0.00378835]
[1768288637505,1.09114102,3129.2,3128.7,0.00378835]
[1768288637700,1.09114102,3129.0,3128.4,1.26057645]
[1768288638010,1.09114102,3129.2,3128.4,1.26057645]
[1768288638616,1.09114102,3129.2,3128.4,1.26417219]
[1768288639407,1.09114102,3129.1,3128.4,1.26417219]
[1768288640900,1.09114102,3129.2,3128.4,1.26417219]
[1768288642308,1.09114102,3129.2,3128.5,0.14003041]
[1768288642509,1.09423612,3129.4,3128.5,1.23117143]
[1768288642900,1.09423612,3129.4,3128.6,0.14003041]
[1768288644700,1.09114102,3129.2,3128.4,1.11856306]
[1768288652717,1.09114102,3129.2,3128.4,1.25859347]
[1768288653112,0.00478774,3129.1,3128.4,1.25859347]
[1768288653512,0.00478774,3129.1,3128.4,2.34973449]
[1768288654517,1.09114102,3128.8,3128.4,1.13673284]
[1768288655020,0.00478774,3129.1,3128.4,1.13673284]
[1768288655213,1.09114102,3129.0,3128.4,1.13673284]
[1768288655620,1.09114102,3128.5,3128.0,0.16003]
[1768288656213,1.09114102,3128.3,3128.0,0.16003]
[1768288656611,1.09114102,3128.3,3128.0,0.16415997]
[1768288656806,1.09114102,3128.3,3127.9,1.518]
[1768288657619,1.09114102,3128.3,3128.0,0.30544198]
[1768288657819,1.09114102,3128.3,3128.0,0.30784401]
[1768288658220,1.09114102,3128.3,3128.1,0.14541198]
[1768288658411,0.8786707,3128.3,3128.1,0.14541198]
[1768288658717,0.8786707,3128.3,3128.0,0.16243203]
[1768288659116,0.8786707,3128.3,3128.0,0.30784401]
[1768288661014,1.09114102,3129.0,3127.9,1.518]
[1768288661206,1.09114102,3128.3,3127.9,1.518]
[1768288661713,1.09114102,3128.3,3128.0,0.16003]
[1768288662111,1.09114102,3128.3,3128.0,0.16293588]
[1768288662312,1.09114102,3128.3,3127.9,1.518]
[1768288662620,1.09114102,3128.3,3128.0,0.16003]
[1768288662822,1.09114102,3128.3,3127.9,1.518]
[1768288663218,1.09114102,3128.3,3127.9,1.52030647]
[1768288663618,1.09114102,3128.1,3127.7,2.86852918]
[1768288663820,1.09114102,3128.1,3127.6,4.39152918]
[1768288664020,1.09114102,3128.1,3127.6,4.53694116]
[1768288664718,1.09114102,3128.3,3127.6,4.53919232]
[1768288665225,1.09114102,3128.1,3127.6,4.53919232]
[1768288665427,1.09114102,3128.3,3127.6,1.67066314]
[1768288666426,0.13910855,3129.1,3127.3,4.16132845]
[1768288666427,1.09114102,3127.9,3127.3,4.16132845]
[1768288666629,1.09114102,3127.9,3127.3,0.16007]
[1768288667425,1.09114102,3127.9,3127.3,0.16233416]
[1768288668330,1.09114102,3127.8,3127.3,1.68933416]
[1768288669433,1.09114102,3128.2,3127.3,2.78047518]
[1768288672233,1.09114102,3128.3,3127.3,2.78047518]
[1768288673439,1.09114102,3128.3,3127.3,1.68933416]
[1768288673631,1.09114102,3128.1,3127.3,1.68933416]
[1768288675943,1.22546183,3128.4,3127.3,1.68933416]
[1768288676133,1.09114102,3128.0,3127.3,1.68933416]
[1768288680747,1.22546183,3128.4,3127.3,1.68933416]
[1768288680941,1.09114102,3128.1,3127.3,1.68933416]
[1768288683135,0.13432081,3128.4,3127.3,1.68933416]
[1768288683341,1.09114102,3128.1,3127.3,1.68933416]
[1768288684243,1.09114102,3128.2,3127.3,1.68933416]
[1768288684642,0.13432081,3128.4,3127.3,1.68933416]
[1768288684946,1.09114102,3128.2,3127.3,1.68933416]
[1768288685851,0.13432081,3128.4,3127.4,1.09114102]
[1768288686050,1.09114102,3128.3,3127.4,1.09114102]
[1768288686346,0.14682197,3128.9,3127.6,1.09114102]
[1768288686546,1.09114102,3128.5,3127.6,1.09114102]
[1768288686847,1.09114102,3128.5,3127.4,2.62014102]
[1768288687347,1.09114102,3128.3,3127.4,2.62014102]
[1768288689450,0.14682197,3128.9,3127.4,1.529]
[1768288689451,1.09185223,3128.6,3127.4,1.529]
[1768288689938,1.2386742,3128.6,3127.4,1.529]
[1768288690648,0.14682197,3128.5,3127.4,1.529]
[1768288694455,1.2386742,3128.5,3127.4,1.529]
[1768288694955,0.14682197,3128.5,3127.4,1.529]
[1768288695151,1.09185223,3128.7,3127.4,1.529]
[1768288698452,0.14605456,3128.9,3127.5,4.12352335]
[1768288698754,0.14605456,3128.9,3127.6,2.87161112]
[1768288703056,1.09185223,3128.7,3127.6,2.87161112]
[1768288703758,0.14605456,3128.9,3127.6,2.87161112]
[1768288704359,1.09185223,3128.7,3127.6,2.87161112]
[1768288704560,1.09185223,3128.7,3127.5,3.03167112]
[1768288705964,0.14605456,3128.9,3127.5,3.03167112]
[1768288706155,1.09185223,3128.8,3127.5,3.03167112]
[1768288707667,1.09185223,3128.8,3127.6,3.03166112]
[1768288708255,1.09185223,3128.8,3127.6,3.17131604]
[1768288708462,1.09663997,3129.1,3127.7,3.03166112]
[1768288708767,0.00478774,3129.1,3127.8,0.29969492]
[1768288708963,1.09185223,3128.7,3127.8,3.03165112]
[1768288709272,1.09185223,3128.4,3127.8,1.69104]
[1768288710171,1.09185223,3128.4,3127.8,0.16004]
[1768288710365,1.09185223,3128.4,3127.5,2.87161112]
[1768288710570,1.09185223,3128.4,3127.6,1.532]
[1768288715681,1.09185223,3128.4,3127.4,2.87161112]
[1768288715977,1.09185223,3128.4,3127.4,4.40461112]
[1768288718185,1.09185223,3128.2,3127.4,2.87161112]
[1768288718374,1.09185223,3128.2,3127.4,1.534]
[1768288719179,0.14605456,3128.7,3127.4,1.534]
[1768288719383,1.09185223,3128.3,3127.4,1.534]
[1768288721171,0.14542399,3128.4,3127.4,1.534]
[1768288721372,1.09185223,3128.6,3127.4,1.534]
[1768288733788,0.14542399,3128.8,3127.4,1.534]
[1768288733999,0.14542399,3128.8,3127.4,4.40561112]
[1768288734494,0.14542399,3128.8,3127.5,2.87161112]
[1768288734696,0.14542399,3128.8,3127.4,4.40561112]
[1768288734897,0.14542399,3128.8,3127.5,2.87161112]
[1768288738396,0.14542399,3128.8,3127.6,2.87161112]
[1768288738892,1.09185223,3128.2,3127.6,2.87161112]
[1768288739102,1.23727622,3127.8,3127.0,2.87849057]
[1768288739392,0.14542399,3127.8,3126.6,0.1601]
[1768288739698,0.14542399,3127.8,3126.6,0.41380266]
[1768288739901,0.14542399,3127.8,3126.6,1.50565489]
[1768288740199,0.14542399,3127.8,3126.6,1.25442869]
[1768288741500,1.09185223,3128.0,3126.6,1.25442869]
[1768288741800,1.09185223,3128.0,3126.6,1.50818053]
[1768288742499,1.09185223,3128.0,3126.6,0.4163283]
[1768288742800,0.14542399,3128.2,3126.6,0.16257646]
[1768288743196,1.09185223,3128.1,3126.6,0.16257646]
[1768288743801,1.23727622,3128.1,3126.6,0.16257646]
[1768288744002,1.23727622,3128.1,3126.6,0.41412948]
[1768288744396,1.23727622,3128.1,3126.6,0.5482]
[1768288747203,1.23727622,3128.1,3126.7,1.538]
[1768288748105,1.23727622,3128.1,3126.7,4.41412801]
[1768288749005,1.23727622,3128.1,3126.8,2.87612801]
[1768288749395,0.13902412,3128.0,3126.8,2.87612801]
[1768288749605,1.09185223,3128.4,3126.8,2.87612801]
[1768288749606,1.23087635,3127.9,3126.8,2.87612801]
[1768288751508,1.09231313,3127.7,3126.8,3.96844114]
[1768288752513,0.13902412,3127.9,3126.8,3.96844114]
[1768288752808,1.09231313,3127.8,3126.8,3.96844114]
[1768288754608,1.09231313,3127.8,3126.8,5.50944114]
[1768288755217,0.13902412,3127.9,3127.0,1.09231313]
[1768288755713,1.09231313,3127.8,3126.9,1.09231313]
[1768288757298,1.09231313,3127.8,3126.8,4.41712801]
[1768288757504,1.09231313,3127.4,3126.8,2.87612801]
[1768288757710,1.09231313,3127.4,3126.7,4.41912801]
[1768288757911,1.09231313,3127.6,3126.7,4.41912801]
[1768288759106,1.09231313,3127.6,3126.7,5.51244114]
[1768288759615,1.09231313,3127.6,3126.7,4.42012801]
[1768288759804,1.09231313,3127.6,3126.7,5.51244114]
[1768288764117,1.09231313,3127.4,3126.7,4.42012801]
[1768288764516,1.09231313,3127.4,3126.7,1.544]
[1768288764706,1.09231313,3127.4,3126.7,1.549]
[1768288766919,1.09231313,3127.5,3126.7,1.549]
[1768288767223,1.09231313,3127.5,3126.6,3.03870447]
[1768288767415,1.09231313,3127.5,3126.7,1.551]
[1768288767614,1.09231313,3127.5,3126.7,4.42712801]
[1768288767819,0.13743397,3128.9,3127.2,1.09231313]
[1768288768021,1.09231313,3127.8,3126.8,1.09231313]
[1768288768319,1.09231313,3127.4,3126.7,4.42812801]
[1768288768513,1.2297471,3127.8,3126.7,4.42812801]
[1768288768514,0.13743397,3127.8,3126.7,4.42812801]
[1768288768720,1.09231313,3127.9,3127.0,1.09231313]
[1768288769610,0.13743397,3128.2,3127.2,1.09231313]
[1768288769814,1.09231313,3127.9,3126.9,1.09231313]
[1768288771023,1.09231313,3127.9,3126.9,3.96844114]
[1768288774320,0.13743397,3128.2,3127.1,1.09231313]
[1768288774519,0.13743397,3128.2,3127.0,2.87612801]
[1768288774726,1.09231313,3128.4,3127.3,1.09231313]
[1768288775218,1.09710868,3128.2,3127.3,1.09231313]
[1768288775631,1.09710868,3128.2,3127.3,2.64631313]
[1768288775632,0.00479555,3128.2,3127.3,2.64631313]
[1768288778129,1.09710868,3128.2,3127.3,2.64631313]
[1768288780821,1.23361231,3128.2,3127.1,2.87612801]
[1768288781020,1.09231313,3127.8,3127.2,1.555]
[1768288781226,1.09231313,3127.9,3127.2,1.555]
[1768288783030,1.09231313,3127.9,3126.9,4.12853114]
[1768288783231,1.09231313,3127.9,3127.0,1.556]
[1768288785341,0.13650363,3128.1,3127.0,1.556]
[1768288785543,1.09231313,3127.9,3127.0,1.556]
[1768288787944,0.13650363,3128.1,3127.0,1.556]
[1768288788145,1.09231313,3127.9,3127.0,1.556]
[1768288788941,1.09231313,3127.4,3126.9,3.03621801]
[1768288789246,1.09231313,3127.5,3126.9,1.56]
[1768288789446,1.09231313,3127.7,3126.9,1.56]
[1768288789939,1.09231313,3127.8,3126.9,2.65231313]
[1768288790134,1.09231313,3128.0,3126.9,2.65231313]
[1768288791042,1.09231313,3128.0,3127.1,1.09231313]
[1768288792149,1.09231313,3128.0,3126.9,1.56]
[1768288792352,1.09231313,3128.0,3127.0,1.09231313]
[1768288792750,1.09231313,3127.9,3127.0,1.09231313]
[1768288793050,1.09231313,3127.9,3127.1,1.561]
[1768288796251,1.09710868,3128.2,3127.2,1.09231313]
[1768288796457,0.00479555,3128.2,3127.2,1.09231313]
[1768288797248,0.00479555,3128.2,3127.4,1.09231313]
[1768288801360,0.00479555,3128.2,3127.6,1.09231313]
[1768288801557,1.09231313,3128.5,3127.6,1.09231313]
[1768288802052,1.09231313,3127.7,3127.3,2.87612801]
[1768288802258,1.09231313,3127.7,3127.1,1.563]
[1768288802956,1.09231313,3127.8,3127.1,1.563]
[1768288804062,1.09231313,3127.9,3127.1,1.563]
[1768288806461,0.1630551,3129.4,3126.9,2.87612801]
[1768288806462,1.09231313,3127.2,3126.9,2.87612801]
[1768288806767,0.00231513,3127.2,3126.9,1.567]
[1768288807361,0.00231513,3127.2,3126.6,0.00247646]
[1768288807362,1.09462826,3127.2,3126.6,0.00247646]
[1768288807760,1.09231313,3127.7,3126.7,1.09231313]
[1768288808068,1.09231313,3127.7,3126.6,0.00247646]
[1768288808264,1.09231313,3127.7,3126.7,1.09231313]
[1768288808866,1.09231313,3127.5,3126.6,1.09478959]
[1768288809268,1.09526353,3127.7,3126.6,1.09478959]
[1768288811370,0.0029504,3127.7,3126.6,0.00247646]
[1768288811966,0.0029504,3127.7,3126.8,0.14555871]
[1768288812268,0.0029504,3127.7,3127.0,1.09237507]
[1768288812662,1.09237507,3128.4,3127.1,1.568]
[1768288813770,1.09645113,3128.4,3127.1,1.568]
[1768288814173,0.00407606,3128.4,3127.1,1.568]
[1768288815478,0.00407606,3128.4,3127.2,1.09237507]
[1768288819972,1.23576143,3128.3,3127.0,2.87635368]
[1768288820275,1.23576143,3128.3,3127.3,1.567]
[1768288821674,1.23576143,3128.3,3127.0,2.87635368]
[1768288821970,1.23576143,3128.3,3127.1,1.568]
[1768288824175,0.00407606,3128.4,3127.5,1.09237507]
[1768288830981,0.00407606,3128.4,3127.4,1.09237507]
[1768288833882,0.00407606,3128.4,3127.3,3.17074767]
[1768288834082,0.00407606,3128.4,3127.4,1.09237507]
[1768288835074,0.00407606,3128.4,3127.5,1.572]
[1768288837279,0.00407606,3128.4,3127.6,1.573]
[1768288838081,0.14159581,3128.4,3127.5,1.573]
[1768288838477,1.09237507,3128.3,3127.5,1.573]
[1768288839180,1.09237507,3128.3,3127.3,0.16007]
[1768288839387,1.09237507,3128.3,3127.5,1.573]
[1768288842590,1.22989482,3128.3,3127.3,0.16007]
[1768288842780,1.22989482,3128.3,3127.0,2.87635368]
[1768288842781,0.13751975,3128.3,3127.0,2.87635368]
[1768288842981,1.09237507,3128.1,3127.1,1.573]
[1768288844291,1.09237507,3128.1,3127.2,1.573]
[1768288846385,1.22989482,3128.1,3127.1,1.574]
[1768288848701,1.22989482,3128.1,3126.7,2.87635368]
[1768288848888,0.13751975,3128.0,3126.8,1.574]
[1768288849089,0.13751975,3128.0,3126.7,2.87635368]
[1768288849289,1.22989482,3127.8,3126.6,3.03893014]
[1768288849499,0.13751975,3127.7,3126.6,0.16257646]
[1768288849798,0.13751975,3127.7,3126.6,1.73657646]
[1768288850189,1.09237507,3127.5,3126.6,1.73657646]
[1768288850389,0.13751975,3127.7,3126.6,1.73657646]
[1768288854197,0.13751975,3127.7,3126.6,1.73757646]
[1768288857407,0.13751975,3128.2,3126.6,1.73757646]
[1768288857599,1.09237507,3127.7,3126.6,1.73757646]
[1768288857905,1.09237507,3128.0,3126.6,2.82995153]
[1768288859005,1.22989482,3128.0,3126.6,2.82995153]
[1768288861207,0.13751975,3127.9,3126.6,2.82995153]
[1768288862507,1.22989482,3127.8,3126.6,1.73757646]
[1768288862803,0.13751975,3127.8,3126.6,1.73757646]
[1768288863411,0.13751975,3127.8,3126.6,0.16257646]
[1768288863716,0.13751975,3127.8,3126.6,1.73757646]
[1768288866211,1.09237507,3127.7,3126.6,1.73757646]
[1768288866411,1.09237507,3127.4,3126.6,1.73857646]
[1768288866710,0.13833791,3127.7,3126.6,1.73857646]
[1768288869413,0.13833791,3127.7,3126.6,0.16257646]
[1768288870418,0.13833791,3127.7,3126.6,1.73857646]
[1768288870615,0.13833791,3128.1,3126.7,0.13611788]
[1768288871515,1.09237507,3128.0,3126.7,0.13611788]
[1768288872116,0.00407606,3128.4,3126.7,0.13611788]
[1768288872417,0.00407606,3128.4,3126.9,1.22849295]
[1768288872418,0.00479555,3127.7,3126.9,1.22849295]
[1768288872620,0.00407606,3128.4,3127.2,0.00479555]
[1768288873014,1.09237507,3128.2,3127.2,0.00479555]
[1768288873216,0.13833791,3128.1,3127.2,0.00479555]
[1768288873420,1.09223682,3127.8,3127.2,0.00479555]
[1768288874722,1.09223682,3127.6,3127.2,0.00479555]
[1768288875218,1.09223682,3128.0,3127.2,0.00479555]
[1768288876524,1.09223682,3127.8,3127.2,0.00479555]
[1768288879819,0.00407606,3128.4,3127.2,0.00479555]
[1768288880014,1.09223682,3128.2,3127.3,1.09223682]
[1768288881719,0.00407606,3128.4,3127.8,1.09223682]
[1768288881922,0.13686791,3128.7,3127.8,1.09223682]
[1768288882819,0.14007443,3128.7,3127.8,1.09223682]
[1768288887135,0.14007443,3128.7,3127.4,0.16006]
[1768288887344,1.09223682,3128.6,3127.7,1.09223682]
[1768288887542,1.22910473,3128.6,3127.6,1.09223682]
[1768288887743,1.09223682,3128.2,3127.7,1.575]
[1768288887939,1.09223682,3128.0,3127.4,0.16006]
[1768288888140,1.09223682,3127.8,3127.2,0.00479555]
[1768288888342,1.09223682,3128.0,3127.4,1.575]
[1768288888645,1.09223682,3128.0,3127.2,1.57979555]
[1768288890038,0.13686791,3128.3,3127.2,1.57979555]
[1768288890241,1.09223682,3128.1,3127.2,2.67203237]
[1768288891042,1.09223682,3128.1,3127.2,1.09703237]
[1768288891344,1.09223682,3127.9,3127.2,0.00479555]
[1768288895349,0.13686791,3128.0,3127.2,0.00479555]
[1768288895845,1.09223682,3128.2,3127.2,1.09703237]
[1768288896048,0.13987422,3128.4,3127.4,1.09223682]
[1768288896049,1.09223682,3128.3,3127.4,1.09223682]
[1768288896554,0.13987422,3128.4,3127.4,1.09223682]
[1768288896744,1.09223682,3128.3,3127.4,1.09223682]
[1768288897454,1.23211104,3128.3,3127.4,1.09223682]
[1768288897753,0.13987422,3128.2,3127.4,1.09223682]
[1768288899654,0.13987422,3128.2,3127.3,1.09223682]
[1768288903161,1.09223682,3128.5,3127.5,1.09223682]
[1768288903660,1.23211104,3128.5,3127.5,1.09223682]
[1768288904262,1.09223682,3128.3,3127.3,1.09223682]
[1768288904866,1.09223682,3128.3,3127.4,1.09223682]
[1768288905161,0.00320652,3128.7,3127.7,0.16005]
[1768288905363,1.09223682,3128.2,3127.7,0.16005]
[1768288905567,0.13987422,3128.1,3127.8,1.576]
[1768288906052,0.13987422,3128.6,3127.8,1.576]
[1768288906258,0.13987422,3128.6,3127.9,1.09223682]
[1768288906556,1.23211104,3128.3,3127.7,0.16005]
[1768288906760,0.13987422,3128.0,3127.6,1.576]
[1768288907056,0.13987422,3128.0,3127.2,0.00479555]
[1768288907256,0.13987422,3127.9,3127.2,0.00479555]
[1768288907462,1.09223682,3128.0,3127.2,1.58079555]
[1768288909159,0.13987422,3128.1,3127.2,1.58079555]
[1768288911271,1.09223682,3128.0,3127.2,1.58079555]
[1768288911474,1.23211104,3128.0,3127.2,1.58079555]
[1768288911665,1.23211104,3128.0,3127.3,1.577]
[1768288911865,1.23211104,3128.0,3127.2,0.00479555]
[1768288911866,1.23211104,3127.8,3127.2,0.00479555]
[1768288919973,0.13987422,3127.7,3127.2,0.00479555]
[1768288920172,0.13987422,3127.5,3127.2,0.00479555]
[1768288920472,0.13987422,3127.5,3127.1,1.577]
[1768288922168,0.13987422,3127.9,3127.1,1.577]
[1768288922361,0.13987422,3127.9,3127.4,1.09223682]
[1768288925877,0.13987422,3127.9,3127.2,1.579]
[1768288926270,0.13987422,3127.9,3127.2,2.67123682]
[1768288927174,0.13987422,3127.9,3127.0,1.25231682]
[1768288927378,0.13987422,3127.9,3127.1,1.579]
[1768288928679,1.23211104,3127.9,3127.1,1.579]
[1768288929679,0.13987422,3127.9,3127.2,1.09223682]
[1768288929881,0.13987422,3127.9,3127.1,2.67123682]
[1768288930380,0.14194084,3128.2,3127.1,2.67123682]
[1768288930582,0.14194084,3128.2,3127.1,1.579]
[1768288930777,0.14194084,3128.2,3127.2,1.09223682]
[1768288931382,0.14514736,3128.7,3127.1,1.579]
[1768288931591,1.09223682,3128.0,3127.2,1.74007]
[1768288931882,0.14194084,3127.7,3127.3,1.58]
[1768288932282,1.09223682,3128.0,3127.3,1.58]
[1768288932585,1.09223682,3128.0,3127.3,1.581]
[1768288935177,0.13887849,3128.1,3127.2,0.16007]
[1768288935378,0.13887849,3128.1,3127.4,1.581]
[1768288940084,0.14208501,3128.7,3127.4,1.581]
[1768288940386,0.13887849,3128.5,3127.4,1.581]
[1768288942493,0.13887849,3128.4,3127.2,0.16007]
[1768288942692,0.13887849,3128.4,3127.5,1.581]
[1768288949098,0.13887849,3128.4,3127.2,0.16007]
[1768288949300,0.13887849,3128.4,3127.3,1.582]
[1768288952707,0.13887849,3128.4,3127.4,1.582]
[1768288955904,0.13887849,3128.4,3127.2,0.16007]
[1768288956207,0.13887849,3128.4,3127.4,1.582]
[1768288957805,0.13887849,3128.4,3127.2,0.16007]
[1768288958108,0.13887849,3128.4,3127.3,1.582]
[1768288958508,0.00320652,3128.7,3127.2,0.16007]
[1768288958509,0.14448623,3128.2,3127.2,0.16007]
[1768288958708,0.14448623,3128.2,3127.3,1.582]
[1768288958903,0.14448623,3128.2,3127.2,1.74207]
[1768288961104,0.14448623,3128.2,3127.2,1.74307]
[1768288961915,0.14769275,3128.7,3127.2,1.74307]
[1768288962206,0.14448623,3128.5,3127.2,1.74307]
[1768288962511,0.14448623,3128.5,3127.4,1.09203095]
[1768288962706,0.00320652,3128.7,3127.4,1.09203095]
[1768288963012,0.00320652,3128.7,3127.7,1.09203095]
[1768288963311,0.00320652,3128.7,3127.6,1.09203095]
[1768288963508,0.14769275,3128.7,3127.4,2.87635368]
[1768288963813,1.23651718,3128.5,3127.5,1.583]
[1768288964012,0.14448623,3128.4,3127.5,1.583]
[1768288964312,0.14448623,3128.4,3127.4,1.583]
[1768288964710,0.14448623,3128.4,3127.3,3.03642368]
[1768288964914,0.14448623,3128.4,3127.4,1.583]
[1768288967419,0.14769275,3128.7,3127.4,1.583]
[1768288969616,0.00320652,3128.7,3127.7,1.09203095]
[1768288969817,0.14448623,3129.1,3127.7,3.03640368]
[1768288970118,0.14448623,3129.1,3127.8,2.87635368]
[1768288970520,0.14448623,3129.1,3127.7,3.03640368]
[1768288970720,0.1485055,3129.1,3127.7,3.03640368]
[1768288971022,0.00479555,3128.8,3127.7,3.03640368]
[1768288971521,0.00479555,3128.8,3127.9,1.09203095]
[1768288971825,0.00479555,3128.8,3127.7,0.16005]
[1768288972222,0.00479555,3128.8,3127.8,1.584]
[1768288973727,0.00479555,3128.8,3127.9,1.584]
[1768288974722,0.00479555,3128.8,3128.0,1.584]
[1768288977221,0.00479555,3128.8,3127.7,0.16005]
[1768288977422,0.00479555,3128.8,3128.1,1.584]
[1768288977729,0.1485055,3129.1,3128.1,1.58879555]
[1768288979224,0.14448623,3129.5,3128.3,1.09203095]
[1768288980130,0.14448623,3129.5,3128.1,1.58879555]
[1768288980429,0.14772705,3129.5,3128.1,1.58879555]
[1768288980632,0.14772705,3129.5,3128.1,2.6808265]
[1768288982122,0.00324082,3129.5,3128.4,1.09203095]
[1768288982326,0.14772705,3129.5,3128.5,1.584]
[1768288984130,0.14772705,3129.5,3128.5,2.67603095]
[1768288984932,0.14772705,3129.5,3128.5,1.584]
[1768288987437,0.14772705,3129.5,3128.6,1.583]
[1768288990036,1.09203095,3129.4,3128.6,1.583]
[1768288993931,1.22676096,3129.4,3128.1,1.2568565]
[1768288994132,1.09203095,3129.2,3128.1,0.16482555]
[1768288994338,1.22676096,3129.2,3128.2,1.582]
[1768288994840,1.22676096,3129.2,3128.3,1.582]
[1768288995232,0.13473001,3129.2,3128.3,1.582]
[1768288995439,1.09135555,3129.1,3128.3,1.582]
[1768288996537,1.22608556,3129.2,3128.3,1.582]
[1768288998131,0.13473001,3129.2,3128.4,1.09135555]
[1768288999036,0.00324082,3129.5,3128.6,1.09135555]
[1768288999239,1.09135555,3129.4,3128.6,1.09135555]
[1768288999432,1.09135555,3129.0,3128.4,1.583]
[1768288999840,1.09135555,3129.2,3128.4,1.583]
[1768289003750,0.13473001,3129.4,3128.3,1.09135555]
[1768289004044,1.09135555,3129.3,3128.4,1.584]
[1768289004242,1.22608556,3129.3,3128.3,1.09135555]
[1768289004444,1.22608556,3129.3,3128.4,1.584]